Cogmind - Beta 13 @@@ ROGUE MODE // 2024.03.12 @ 20:35:00 Player: StarSirius Result: Smashed by cave-in Performance ------------- Evolutions (0) 0 Regions Visited (3) 600 Robots Destroyed (17) 85 Value Destroyed (473) 473 Prototype IDs (0) 0 Alien Tech Used (0) 0 Bonus (0) 0 TOTAL SCORE: 1158 Bonus ------- None Cogmind --------- Core Integrity 0/250 Matter 295/300 Energy 95/100 System Corruption 1% Temperature Cool (47) Movement Rolling (110) Location -10/Subcaves Parts ------- > --- POWER (1) -------- (None) > --- PROPULSION (2) --- Subdweller Monowheel > --- UTILITY (2) ------ Small Storage Unit > --- WEAPON (2) ------- Particle Gun Particle Gun > --- INVENTORY (8) ---- Light Treads Light Treads Wheel Improved Heat Sink Medium Laser Particle Gun Maul Peak State ------------ > --- POWER ------------ Ion Engine > --- PROPULSION ------- Wheel Compact Wheel > --- UTILITY ---------- Small Storage Unit Improved Terrain Scanner > --- WEAPON ----------- Medium Laser Particle Gun > --- INVENTORY -------- Light Treads Light Treads Aluminum Leg Signal Interpreter Particle Gun Particle Gun Particle Gun Maul [Rating: 11] Favorites ----------- Power Ion Engine Engine Ion Engine Propulsion Wheel Treads Light Treads Wheel Wheel Utility Small Storage Unit Device Improved Terrain Scanner Storage Small Storage Unit Processor Signal Interpreter Weapon Particle Gun Energy Gun Particle Gun Ballistic Gun Light Assault Rifle Launcher Grenade Launcher Build | -11 -10 -10 -10 ------- Run | Yrd Mat Min Sub Slots Evolved . | . . . . Power . | . . . . Propulsion . | . . . . Utility . | . . . . Weapon . | . . . . Parts Attached 24 | 8 2 7 7 Power 1 | 1 . . . Engine 1 | 1 . . . Core . | . . . . Reactor . | . . . . Propulsion 9 | 2 . 3 4 Treads 2 | . . . 2 Leg . | . . . . Wheel 7 | 2 . 3 2 Hover . | . . . . Flight . | . . . . Utility 4 | 2 1 1 . Device 2 | 1 1 . . Storage 1 | 1 . . . Processor 1 | . . 1 . Hackware . | . . . . Protection . | . . . . Artifact . | . . . . Weapon 10 | 3 1 3 3 Energy Gun 7 | 2 1 2 2 Energy Cannon . | . . . . Ballistic Gun 1 | 1 . . . Ballistic Cannon . | . . . . Launcher 2 | . . 1 1 Special Weapon . | . . . . Impact Weapon . | . . . . Slashing Weapon . | . . . . Piercing Weapon . | . . . . Special Melee Weapon . | . . . . Unidentified Prototypes . | . . . . Parts Lost 6 | . . 1 5 Power 1 | . . . 1 Propulsion 2 | . . 1 1 Utility 1 | . . . 1 Weapon 2 | . . . 2 Highest Loss Streak 3 | . . 1 3 To Critical Strikes . | . . . . Average Slot Usage (%) 99 | . 100 99 99 Engine 14 | . 14 14 14 Treads 2 | . . . 9 Wheel 25 | . 28 27 18 Device 4 | . 14 4 . Storage 14 | . 14 14 14 Processor 9 | . . 9 14 Energy Gun 27 | . 28 27 27 Naked Turns . | . . . . Heaviest Build 16 | 14 16 16 16 Greatest Support 40 | 26 26 32 40 Greatest Overweight (x) . | . . . . Average Overweight (x) . | . . . . Largest Inventory Capacity 8 | 8 8 8 8 Average Capacity 7 | 6 8 8 8 Most Carried 8 | 6 8 8 8 Average Carried 7 | 4 7 8 7 Final Capacity 8 | 8 8 8 8 Final Carried 8 | 6 8 8 7 Class Distribution -------------------- 100% | Mutant Dominant Class ---------------- Mutant | -10/Materials Mutant | -10/Mines Mutant | -10/Subcaves Resources | -11 -10 -10 -10 ----------- Run | Yrd Mat Min Sub Matter Collected 415 | 227 53 85 50 Remotely . | . . . . Salvage Created 545 | 21 161 293 70 Parts 29 | 2 8 18 1 Haulers Intercepted . | . . . . Recyclers Shooed 1 | . . 1 . Parts Field Recycled . | . . . . Retrieved Matter . | . . . . Parts Self-Destructed 20 | . . . 20 Prevented . | . . . . Kills | -11 -10 -10 -10 ------- Run | Yrd Mat Min Sub Combat Hostiles Destroyed 14 | . 4 8 2 Guns 11 | . 4 5 2 AOE 3 | . . 3 . Classes Destroyed 6 | 1 1 3 1 Builder 1 | . . 1 . Tunneler 1 | 1 . . . Recycler 1 | . . 1 . Swarmer 3 | . . 3 . Grunt 9 | . 4 5 . Subdweller 2 | . . . 2 Best Kill Streak 6 | 1 2 6 2 Combat Bots Only 3 | . 2 3 2 Max Kills in Single Turn 3 | 1 1 3 1 Gunslinging . | . . . . Exploded 3 | . . 3 . Melee . | . . . . Uniques/NPCs Destroyed . | . . . . Combat | -11 -10 -10 -10 -------- Run | Yrd Mat Min Sub Hostile Shots Fired 105 | . 7 18 80 Missed 45 | . 2 3 40 Damage Taken 891 | . 77 205 609 Core 260 | . 43 65 152 Absorbed by Shields . | . . . . Core Remaining (%) 100 | 100 . . . Volleys Fired 41 | 3 9 19 10 Largest 2 | 2 2 2 2 Hottest 130 | 90 115 115 130 Shots Fired 77 | 6 18 37 16 Gun 76 | 6 18 36 16 Cannon . | . . . . Launcher 1 | . . 1 . Special . | . . . . Kinetic . | . . . . Thermal 76 | 6 18 36 16 Explosive 1 | . . 1 . Electromagnetic . | . . . . Robot Hit Streak 19 | 3 19 15 11 Robot Miss Streak 2 | 1 . 2 1 Penetration Max . | . . . . Secondary Targets 1 | . . . 1 Max Gunslinging Chain 1 | . . . 1 Shots Hit Robots 66 | 5 17 30 14 Core Hits 33 | 1 8 19 5 Critical Kills . | . . . . Critical Parts Destroyed . | . . . . Critical Strikes 5 | . 2 1 2 Burn 5 | . 2 1 2 Melee Attacks . | . . . . Impact . | . . . . Slashing . | . . . . Piercing . | . . . . Sneak Attacks . | . . . . Combat Hostiles . | . . . . Follow-up Attacks . | . . . . Damage Inflicted 1052 | 56 219 545 232 Guns 922 | 56 219 415 232 Cannons . | . . . . Explosions 130 | . . 130 . Melee . | . . . . Ramming . | . . . . Kinetic . | . . . . Thermal 922 | 56 219 415 232 Explosive 130 | . . 130 . Electromagnetic . | . . . . Impact . | . . . . Slashing . | . . . . Piercing . | . . . . Highest Corruption . | . . . . Average Corruption . | . . . . Corruption Purged . | . . . . Corruption Blocked . | . . . . Overload Shots . | . . . . Overflow Damage . | . . . . Projectiles . | . . . . Explosions . | . . . . Melee . | . . . . Knockbacks . | . . . . Impact . | . . . . Kinetic . | . . . . Secondary . | . . . . Self-Inflicted Damage . | . . . . Shots . | . . . . Rammed . | . . . . Targets Rammed . | . . . . Kicked . | . . . . Crushed . | . . . . Highest Temperature 275 | 90 189 275 51 Average Temperature 75 | 46 84 91 23 Received Heat Transfer 375 | . 42 123 210 Siege Activations . | . . . . Robots Corrupted . | . . . . Combat Hostiles . | . . . . Parts Fried . | . . . . Impact Corruptions . | . . . . Robots Melted . | . . . . Combat Hostiles . | . . . . Parts Melted 9 | . 2 5 2 Heat Transferred 2716 | 149 717 1184 666 Parts Sabotaged . | . . . . Parts Stolen . | . . . . Parts Stripped . | . . . . Power Chain Reactions . | . . . . Alert | -11 -10 -10 -10 ------- Run | Yrd Mat Min Sub Peak Influence 256 | 5 111 256 . Initial 43 | . 3 43 . Average 93 | 1 37 126 . Maximum Alert Level 1 | . . 1 . Low Security (%) 82 | 100 100 73 . Level 1 17 | . . 26 . Level 2 . | . . . . Level 3 . | . . . . Level 4 . | . . . . Level 5 . | . . . . High Security . | . . . . Max Security . | . . . . Squads Dispatched . | . . . . Investigation . | . . . . Extermination . | . . . . Reinforcement . | . . . . Assault . | . . . . Garrison . | . . . . Intercept . | . . . . Searches Triggered . | . . . . Construction Impeded . | . . . . Haulers Reinforced . | . . . . Active Scanning Responses . | . . . . Cargo Convoy Interrupts . | . . . . Stealth | -11 -10 -10 -10 --------- Run | Yrd Mat Min Sub Distress Signals . | . . . . Communications Jammed . | . . . . Distress Signals . | . . . . Times Spotted 50 | . 4 9 37 Peak Tracking Total 4 | . 2 3 4 Tactical Retreats 4 | . . 1 3 Traps | -11 -10 -10 -10 ------- Run | Yrd Mat Min Sub Traps Triggered . | . . . . Indirectly . | . . . . Trap Hack Attempts . | . . . . Triggered . | . . . . Disarmed . | . . . . Reprogrammed . | . . . . Reused . | . . . . Traps Extracted . | . . . . Installed . | . . . . Triggered . | . . . . Machines | -11 -10 -10 -10 ---------- Run | Yrd Mat Min Sub Machines Disabled . | . . . . Max in Single Turn . | . . . . Machines Repaired . | . . . . Machines Dismantled . | . . . . Machines Sabotaged . | . . . . Overloaded Fab Kills . | . . . . Hacking | -11 -10 -10 -10 --------- Run | Yrd Mat Min Sub Machines Accessed 4 | . 4 . . Terminals 4 | . 4 . . Fabricators . | . . . . Repair Stations . | . . . . Recycling Units . | . . . . Scanalyzers . | . . . . Garrison Access . | . . . . Total Hacks 10 | . 10 . . Successful 6 | . 6 . . Failed 4 | . 4 . . Catastrophic . | . . . . Database Lockouts . | . . . . Manual 6 | . 6 . . Terminals 10 | . 10 . . Fabricators . | . . . . Repair Stations . | . . . . Recycling Units . | . . . . Scanalyzers . | . . . . Garrison Access . | . . . . Terminal Hacks 4 | . 4 . . Record 2 | . 2 . . Branch Access Points 1 | . 1 . . Terminal Index 1 | . 1 . . Fabricator Hacks . | . . . . Repair Station Hacks . | . . . . Recycling Unit Hacks . | . . . . Scanalyzer . | . . . . Garrison Access Hacks . | . . . . Unauthorized Hacks 2 | . 2 . . Terminals 2 | . 2 . . Botnet 2 | . 2 . . Fabricators . | . . . . Repair Stations . | . . . . Recycling Units . | . . . . Scanalyzers . | . . . . Garrison Access . | . . . . Data Cores Recovered . | . . . . Used . | . . . . Hacking Detections 4 | . 4 . . Full Trace Events . | . . . . Feedback Events . | . . . . Feedback Blocked . | . . . . Robot Schematics Acquired . | . . . . Robots Built . | . . . . Authchips . | . . . . Time . | . . . . Total Robot Build Rating . | . . . . Part Schematics Acquired . | . . . . Parts Built . | . . . . Authchips . | . . . . Time . | . . . . Total Part Build Rating . | . . . . Parts Repaired . | . . . . Time . | . . . . Parts Recycled . | . . . . Recycled Matter . | . . . . Retrieved Matter . | . . . . Retrieved Components . | . . . . Parts Scanalyzed . | . . . . Part Schematics Acquired . | . . . . Parts Damaged . | . . . . Bothacking | -11 -10 -10 -10 ------------ Run | Yrd Mat Min Sub Used RIF Installer . | . . . . Robots Hacked . | . . . . Non-combat . | . . . . Combat . | . . . . Robot Hacks Applied . | . . . . Relay Couplers Released . | . . . . Fabnet Peak Effective % . | . . . . Robots Rewired . | . . . . Allies Hacked . | . . . . Hacks Repelled . | . . . . Allies | -11 -10 -10 -10 -------- Run | Yrd Mat Min Sub Total Allies . | . . . . Largest Group . | . . . . Highest-Rated Group . | . . . . Highest-Rated Ally . | . . . . Total Orders . | . . . . Ally Attacks . | . . . . Total Damage . | . . . . Kills . | . . . . Allies Corrupted . | . . . . Allies Melted . | . . . . Intel | -11 -10 -10 -10 ------- Run | Yrd Mat Min Sub Robot Analysis Total . | . . . . Derelict Logs Recovered 1 | . . 1 . Drone Launches . | . . . . Drone Recoveries . | . . . . Exploration | -11 -10 -10 -10 ------------- Run | Yrd Mat Min Sub Turns Passed 1334 | 83 233 640 378 Spaces Moved 833 | 60 199 244 330 Core 1 | 1 . . . Treads 58 | . . . 58 Legs . | . . . . Wheels 774 | 59 199 244 272 Hover . | . . . . Flight . | . . . . Fastest Speed 50 | 50 90 80 80 Average Speed 92 | 90 90 89 97 Slowest Speed 160 | 100 90 100 160 Overloaded Moves . | . . . . Propulsion Burnouts . | . . . . Robots Hopped . | . . . . Cave-ins Triggered 1 | . . . 1 Exploration Rate (%) 30 | 4 46 41 31 Regions Visited 3 Branch Regions 2 Pre-discovered Areas 1 | . . 1 . Known Exits Taken 2 | . 1 1 . Unknown Exits Taken 1 | 1 . . . Scrap Searched 1 | . . 1 . Spaces Dug . | . . . . Terrain Destroyed 8 | . . 8 . Melee . | . . . . Projectile . | . . . . AOE 8 | . . 8 . Terrain Rammed . | . . . . Walls Destroyed . | . . . . Machines Disabled . | . . . . Actions | -11 -10 -10 -10 --------- Run | Yrd Mat Min Sub Total 1311 | 78 237 628 368 Wait 386 | 2 14 354 16 Move 830 | 59 198 243 330 Hop . | . . . . Pick Up 17 | 6 7 1 3 Fast Attach 10 | 7 2 1 . Attach 2 | . . . 2 Detach . | . . . . Swap 12 | 1 . 6 5 Drop 13 | . 7 4 2 Fire 41 | 3 9 19 10 Melee . | . . . . Ram . | . . . . Kick . | . . . . Crush . | . . . . Escape Stasis . | . . . . Rewire . | . . . . Trap . | . . . . Miscellaneous . | . . . . Route ------- -11/Scrapyard -10/Materials (discovered 2 exits: *Mat / *Min) -10/Mines (discovered 2 exits: *Mat / *Sub) -10/Subcaves (discovered 3 exits: *Mat x2 / [*Rec]) History --------- Turn | Location | Event 12 | -11/Scrapyard | Discovered new exit (range 16) 84 | -11/Scrapyard | Entered Materials 180 | -10/Materials | Identified exit to Mines 237 | -10/Materials | Discovered new exit (range 8) 315 | -10/Materials | Build established: Mutant 317 | -10/Materials | Entered Mines 318 | -10/Mines | Learned location of Storage (-8) 470 | -10/Mines | Discovered new exit (range 10) 501 | -10/Mines | Identified exit to Materials 952 | -10/Mines | Discovered new exit (range 4) 956 | -10/Mines | Identified exit to Subcaves 957 | -10/Mines | Entered Subcaves 983 | -10/Subcaves | Shifting Twisted Machinery released Sub. Power Source 1030 | -10/Subcaves | Discovered new exit (range 9) 1035 | -10/Subcaves | Identified exit to Materials 1086 | -10/Subcaves | Core integrity fell below 50% 1281 | -10/Subcaves | Discovered exit to Materials (range 9) 1306 | -10/Subcaves | Core integrity fell below 20% 1323 | -10/Subcaves | Discovered new exit (range 15) 1336 | -10/Subcaves | Crushed by falling debris 1336 | -10/Subcaves | Smashed by cave-in Last Messages --------------- to Scrap Shield. 01148_ Disposable Heat Sink melted. 01148_ OF-0N8(R) destroyed. 01151_ Acquired 39 matter. 01155_ Acquired Sub. Monowheel. 01159_ Acquired Scrap Shield Fragment. 01160_ Dropped Scrap Shield Fragment. 01163_ Acquired Scrap Shield Fragment. 01164_ Acquired 11 matter. 01281_ EXIT=FOUND: MATERIALS 01323_ EXIT=FOUND 01329_ Dropped Scrap Shield Fragment. 01331_ Ion Engine destroyed. 01333_ Autobeam Turret suffers critical hit (Burn). 01333_ Wheel destroyed. 01336_ The unstable cave ceiling collapses. 01336_ Crushed by falling debris. 01336_ Signal Interpreter destroyed. 01336_ System corrupted by crushing effect (+1). Map ----- +----------------------------------------------------+ | ?????????????????????????????????????????????????? | | ?????????????????????????????????????????????????? | | ?????????????????????????????????????????????????? | | ?????????????????????????????????????????????????? | | ?????????????????????????????????????????????????? | | ?????????????????????????????????????????????????? | | ?????????????????????????????????????????????????? | | ?????????????????????????????????????????????????? | | ?????????????????????????????????????????????????? | | ?????????????????????????????????????????????????? | | ?????????????????????????????????????????????????? | | ?????????????????????????#???????????????????????? | | ?????????????????????###?